Body,Body Name,Date,TransNo,Amount � (Excl VAT),Supplier name,Description,Expense Area,Expense Type,Expense Code,
http://opendatacommunities.org/id/london-borough-council/sutton,London Borough of Sutton,30/07/2021,10004034,116.81, AMZNMKTPLACE AMAZON.CO,TOYS & EQUIPMENT,Health and Wellbeing,Equipment And Materials Purchase,A40000,
http://opendatacommunities.org/id/london-borough-council/sutton,London Borough of Sutton,29/07/2021,10004034,11.85, WWW.ADVENTURETOYS.CO.U,TOYS & EQUIPMENT,Health and Wellbeing,Equipment And Materials Purchase,A40000,
http://opendatacommunities.org/id/london-borough-council/sutton,London Borough of Sutton,28/07/2021,10004034,14.85, AMZNMKTPLACE,TOYS & EQUIPMENT,Health and Wellbeing,Equipment And Materials Purchase,A40000,
http://opendatacommunities.org/id/london-borough-council/sutton,London Borough of Sutton,14/08/2021,10004034,18.94, AMZNMKTPLACE,EQUIPMENT,Health and Wellbeing,Equipment And Materials Purchase,A40000,
http://opendatacommunities.org/id/london-borough-council/sutton,London Borough of Sutton,23/08/2021,10004034,9.99, TWINKL LIMITED,TWINKLE SUBSCRIPTION,Health and Wellbeing,Equipment And Materials Purchase,A40000,
http://opendatacommunities.org/id/london-borough-council/sutton,London Borough of Sutton,19/08/2021,10004034,19.20, POUNDLAND,TOYS & EQUIPMENT,Health and Wellbeing,Equipment And Materials Purchase,A40000,
http://opendatacommunities.org/id/london-borough-council/sutton,London Borough of Sutton,19/08/2021,10004034,23.40, ASDA SUPERSTORE,GROCERIES,Health and Wellbeing,Provisions,A41006,
http://opendatacommunities.org/id/london-borough-council/sutton,London Borough of Sutton,23/08/2021,10004034,52.89, W M MORRISONS.COM,GROCERIES,Health and Wellbeing,Provisions,A41006,
http://opendatacommunities.org/id/london-borough-council/sutton,London Borough of Sutton,08/08/2021,10004034,51.87, W M MORRISONS.COM,GROCERIES,Health and Wellbeing,Provisions,A41006,
http://opendatacommunities.org/id/london-borough-council/sutton,London Borough of Sutton,01/08/2021,10004034,104.02, W M MORRISONS.COM,GROCERIES,Health and Wellbeing,Provisions,A41006,
http://opendatacommunities.org/id/london-borough-council/sutton,London Borough of Sutton,16/08/2021,10004034,92.38, W M MORRISONS.COM,GROCERIES,Health and Wellbeing,Provisions,A41006,
http://opendatacommunities.org/id/london-borough-council/sutton,London Borough of Sutton,18/08/2021,10004034,6.18, AMAZON.CO.UK T90V249N5,FIRST AID EQUIPMENT,Health and Wellbeing,Other Supplies & Services,A44291,
http://opendatacommunities.org/id/london-borough-council/sutton,London Borough of Sutton,20/08/2021,10004034,408.33, WWW.PLANNING.CO,PLANNING APPLICATION FEE FOR DIVERSITY MURAL,Health and Wellbeing,Fees,A44040,
http://opendatacommunities.org/id/london-borough-council/sutton,London Borough of Sutton,20/08/2021,10004034,9.88, FACEBK  CK4AV57K72,SOCIAL MEDIA POST,Health and Wellbeing,Publicity,A44266,
http://opendatacommunities.org/id/london-borough-council/sutton,London Borough of Sutton,08/08/2021,10004034,20.83, FACEBK  93GBZ4PJ72,SOCIAL MEDIA POSTS,Health and Wellbeing,Publicity,A44266,
http://opendatacommunities.org/id/london-borough-council/sutton,London Borough of Sutton,03/08/2021,10004034,20.83, FACEBK 8W4DZ5TJE2,SOCIAL MEDIA POSTS,Health and Wellbeing,Publicity,A44266,
http://opendatacommunities.org/id/london-borough-council/sutton,London Borough of Sutton,01/08/2021,10004034,14.17, FACEBK  JNDRJ4FK72,SOCIAL MEDIA POSTS,Health and Wellbeing,Publicity,A44266,
http://opendatacommunities.org/id/london-borough-council/sutton,London Borough of Sutton,27/07/2021,10004034,5.74, FACEBK 4BYHT5TJE2,SOCIAL MEDIA POSTS,Health and Wellbeing,Publicity,A44266,
http://opendatacommunities.org/id/london-borough-council/sutton,London Borough of Sutton,26/07/2021,10004034,10.00, FACEBK  QAPMG4FJ72,SOCIAL MEDIA POSTS,Health and Wellbeing,Publicity,A44266,
http://opendatacommunities.org/id/london-borough-council/sutton,London Borough of Sutton,10/08/2021,10004034,7.35, CLOCKTOWER CARS,COURIER: ASCC EVENT 8 AUG,Health and Wellbeing,Provider Contract Payments,A44290,
http://opendatacommunities.org/id/london-borough-council/sutton,London Borough of Sutton,31/07/2021,10004034,6.48, CLOCKTOWER CARS,COURIER FOR AFRICAN CARIBBEAN VILLAGE EVENT 31JULY,Health and Wellbeing,Provider Contract Payments,A44290,
http://opendatacommunities.org/id/london-borough-council/sutton,London Borough of Sutton,28/07/2021,10004034,45.55, FACEBK FLB8L5XFR2,SPLIT - BAME VACCINE VIDEO (75.92%),Health and Wellbeing,Provider Contract Payments,A44290,
http://opendatacommunities.org/id/london-borough-council/sutton,London Borough of Sutton,26/07/2021,10004034,29.38, FACEBK KWKVS63GR2,SPLIT - BAME VACCINE VIDEO (73.45%),Health and Wellbeing,Provider Contract Payments,A44290,
http://opendatacommunities.org/id/london-borough-council/sutton,London Borough of Sutton,03/08/2021,10004034,8.32, SPOTIFY UK,MUSIC FOR WEDDINGS,Resources,Subscriptions,A47010,
http://opendatacommunities.org/id/london-borough-council/sutton,London Borough of Sutton,30/07/2021,10004034,18.32, SUTTLES OF MALDEN,FOLDER FOR WEDDINGS,Resources,Miscellaneous Expenses,A49000,
http://opendatacommunities.org/id/london-borough-council/sutton,London Borough of Sutton,16/08/2021,10004034,7.66, MAILCHIMP    MONTHLY,WEB HOSTING,Resources,IT Software Purchase,A45040,
http://opendatacommunities.org/id/london-borough-council/sutton,London Borough of Sutton,14/08/2021,10004034,278.46, MAILCHIMP    MONTHLY,WEB HOSTING,Resources,IT Software Purchase,A45040,
http://opendatacommunities.org/id/london-borough-council/sutton,London Borough of Sutton,26/07/2021,10004034,45.00, THE COMMISSION FOR LOC,TRAINING COURSE,Resources,Subscriptions,A47010,
http://opendatacommunities.org/id/london-borough-council/sutton,London Borough of Sutton,08/08/2021,10004034,32.00, AMZNMKTPLACE AMAZON.CO,"SPLIT - GOLDFAN MESH COMPUTER DESK CHAIR OFFICE CHAIR HIGH BACK SWIVEL CHAIR HEIGHT ADJUSTABLE SWIVEL DESK CHAIR ERGONOMIC LUMBAR SUPPORT (BLACK, 1) (100%)",Resources,Equipment And Materials Purchase,A40000,
http://opendatacommunities.org/id/london-borough-council/sutton,London Borough of Sutton,02/08/2021,10004034,26.95, AMZNMKTPLACE AMAZON.CO,"SPLIT - USB HEADSET WITH MICROPHONE NOISE CANCELLING, PC HEADPHONE FOR COMPUTER LAPTOP SKYPE UC LYNC SOFTPHONE CALL CENTER OFFICE BUSINESS, AUDIO CONTROLS, CL (100%)",Resources,Equipment And Materials Purchase,A40000,
http://opendatacommunities.org/id/london-borough-council/sutton,London Borough of Sutton,29/07/2021,10004034,11.99, AMZNMKTPLACE AMAZON.CO,"SPLIT - VIVILIAN ERGONOMIC GAME CHAIR SLIPCOVERS, WITH ARMREST SLIPCOVERS OFFICE COMPUTER CHAIRS COVERS, COMFORTABLE STRETCHY CHAIR COVERS FOR RACING GAMING C (100%)",Resources,Equipment And Materials Purchase,A40000,
http://opendatacommunities.org/id/london-borough-council/sutton,London Borough of Sutton,05/08/2021,10004034,4.16, AMZNMKTPLACE AMAZON.CO,BALANCING ENTRY AMOUNT (18.1%),Resources,Equipment And Materials Purchase,A40000,
http://opendatacommunities.org/id/london-borough-council/sutton,London Borough of Sutton,05/08/2021,10004034,6.53, AMAZON.CO.UK 157VC21U5,"SPLIT - AMAZON BASICS HIGH-SPEED, ULTRA HD HDMI 2.0 CABLE, SUPPORTS 3D FORMATS AND WITH AUDIO RETURN CHANNEL, 1.8 M (61.09%)",Resources,Equipment And Materials Purchase,A40000,
http://opendatacommunities.org/id/london-borough-council/sutton,London Borough of Sutton,05/08/2021,10004034,4.16, AMAZON.CO.UK 157VC21U5,BALANCING ENTRY AMOUNT (38.91%),Resources,Equipment And Materials Purchase,A40000,
http://opendatacommunities.org/id/london-borough-council/sutton,London Borough of Sutton,05/08/2021,10004034,18.82, AMZNMKTPLACE AMAZON.CO,"SPLIT - 14.0 INCH LAPTOP PRIVACY SCREEN FILTER FOR 16:9 ASPECT RATIO WIDESCREEN LAPTOP, ANTI-GLARE, BLOCKS 96% UV, ANTI-SCRATCH PROTECTOR (81.9%)",Resources,Equipment And Materials Purchase,A40000,
http://opendatacommunities.org/id/london-borough-council/sutton,London Borough of Sutton,15/08/2021,10004034,9.76, AMZNMKTPLACE,"SPLIT - GIM KEYBOARD WRIST REST MOUSE PAD, MOUSE MAT KEYBOARD WRIST SUPPORT PAD SET, ERGONOMIC WRIST CUSHION SUPPORT WITH MEMORY FOAM WRIST SUPPORT FOR COMPUT (73.79%)",Resources,Equipment And Materials Purchase,A40000,
http://opendatacommunities.org/id/london-borough-council/sutton,London Borough of Sutton,15/08/2021,10004034,3.47, AMZNMKTPLACE,BALANCING ENTRY AMOUNT (26.21%),Resources,Equipment And Materials Purchase,A40000,
http://opendatacommunities.org/id/london-borough-council/sutton,London Borough of Sutton,10/08/2021,10004034,9.82, AMZNMKTPLACE,"SPLIT - 3 PACK EARPHONES, IN-EAR HEADPHONES WIRED EARBUDS, NOISE ISOLATING HEADSET WITH MICROPHONE, HEAVY DEEP BASS, COMPATIBLE WITH PHONE PAD SAMSUNG HUAWEI (70.24%)",Resources,Miscellaneous Expenses,A49000,
http://opendatacommunities.org/id/london-borough-council/sutton,London Borough of Sutton,10/08/2021,10004034,4.16, AMZNMKTPLACE,BALANCING ENTRY AMOUNT (29.76%),Resources,Miscellaneous Expenses,A49000,
http://opendatacommunities.org/id/london-borough-council/sutton,London Borough of Sutton,02/08/2021,10004034,14.97, PAYPAL  GSUITEADDON,E41140 9999 - $39.99 DOCUMENT STUDIO.PDF,Resources,Licences-Exempt,A92106,
http://opendatacommunities.org/id/london-borough-council/sutton,London Borough of Sutton,01/08/2021,10004034,29.93, PAYPAL  GSUITEADDON,E41140 9999 - $39.99 DOCUMENT STUDIO.PDF,Resources,Licences-Exempt,A92106,
http://opendatacommunities.org/id/london-borough-council/sutton,London Borough of Sutton,20/08/2021,10004034,0.14, PORTANT.CO,FEE,Resources,Childrens Services - Other Recovery,R20101,
http://opendatacommunities.org/id/london-borough-council/sutton,London Borough of Sutton,19/08/2021,10004034,5.10, PORTANT.CO,MONTHLY SUBSCRIPTION PORTANT FOR CEDT & CP MEETINGS (1 ACCOUNT),Resources,Childrens Services - Other Recovery,R20101,
http://opendatacommunities.org/id/london-borough-council/sutton,London Borough of Sutton,12/08/2021,10004034,14.99, PAYPAL  999 DAY,PURCHASE OF EMERGENCY DAY FLAG FOR 9TH SEPTEMBER 2021,Resources,Equipment And Materials Purchase,A40000,
http://opendatacommunities.org/id/london-borough-council/sutton,London Borough of Sutton,12/08/2021,10004034,495.00, AH MEDIA LTD,CANCELLATION CHARGE - LOCAL GOV STRATEGY FORUM,Resources,Miscellaneous Expenses,A49000,
http://opendatacommunities.org/id/london-borough-council/sutton,London Borough of Sutton,12/08/2021,10004034,90.00, FACEBK CBV3973GR2,STRONGER SUTTON AND VEOLIA RECRUITMENT ADS,Resources,Publicity,A44266,
http://opendatacommunities.org/id/london-borough-council/sutton,London Borough of Sutton,28/07/2021,10004034,14.45, FACEBK FLB8L5XFR2,SPLIT - RERUITMENT PROMOTION VEOLIA (24.08%),Resources,Publicity,A44266,
http://opendatacommunities.org/id/london-borough-council/sutton,London Borough of Sutton,26/07/2021,10004034,10.62, FACEBK KWKVS63GR2,SPLIT - RERUITMENT PROMOTION VEOLIA (26.55%),Resources,Publicity,A44266,
http://opendatacommunities.org/id/london-borough-council/sutton,London Borough of Sutton,25/08/2021,10004034,88.74, AMZNMKTPLACE,MATERIALS FOR EVENTS AND ADAPTER CABLE FOR MICROPHONE,Resources,Publicity,A44266,
http://opendatacommunities.org/id/london-borough-council/sutton,London Borough of Sutton,25/08/2021,10004034,0.99, AMAZON PRIME ND8HC2XS5,AMAZON PURCHASE,Resources,Publicity,A44266,
http://opendatacommunities.org/id/london-borough-council/sutton,London Borough of Sutton,22/08/2021,10004034,125.00, FACEBK UL32R73FR2,ADS - VEOLIA HGV DRIVERS + NOTALONEINSUTTON,Resources,Publicity,A44266,
http://opendatacommunities.org/id/london-borough-council/sutton,London Borough of Sutton,17/08/2021,10004034,54.13, FACEBK F3WH47XER2,ADS - VEOLIA HGV DRIVERS + NOTALONEINSUTTON,Resources,Publicity,A44266,
http://opendatacommunities.org/id/london-borough-council/sutton,London Borough of Sutton,21/08/2021,10004034,200.03, MAILCHIMP,MAILCHIMP SUBSCRIPTION,Resources,Communications,A45025,
http://opendatacommunities.org/id/london-borough-council/sutton,London Borough of Sutton,24/08/2021,10004034,493.99, CURRYS ONLINE,CL&G,Resources,"Grants, Contributions & Donations",A47005,
http://opendatacommunities.org/id/london-borough-council/sutton,London Borough of Sutton,24/08/2021,10004034,286.95, ARGOS LTD,CL&G,Resources,"Grants, Contributions & Donations",A47005,
http://opendatacommunities.org/id/london-borough-council/sutton,London Borough of Sutton,24/08/2021,10004034,523.99, CURRYS ONLINE,CL&G,Resources,"Grants, Contributions & Donations",A47005,
http://opendatacommunities.org/id/london-borough-council/sutton,London Borough of Sutton,24/08/2021,10004034,269.99, ARGOS LTD,CL&G,Resources,"Grants, Contributions & Donations",A47005,
http://opendatacommunities.org/id/london-borough-council/sutton,London Borough of Sutton,24/08/2021,10004034,269.99, ARGOS LTD,CL&G,Resources,"Grants, Contributions & Donations",A47005,
http://opendatacommunities.org/id/london-borough-council/sutton,London Borough of Sutton,24/08/2021,10004034,193.95, ARGOS LTD,CL&G,Resources,"Grants, Contributions & Donations",A47005,
http://opendatacommunities.org/id/london-borough-council/sutton,London Borough of Sutton,23/08/2021,10004034,313.95, ARGOS LTD,CL&G,Resources,"Grants, Contributions & Donations",A47005,
http://opendatacommunities.org/id/london-borough-council/sutton,London Borough of Sutton,19/08/2021,10004034,306.95, ARGOS LTD,CL&G,Resources,"Grants, Contributions & Donations",A47005,
http://opendatacommunities.org/id/london-borough-council/sutton,London Borough of Sutton,19/08/2021,10004034,226.95, ARGOS LTD,CL&G,Resources,"Grants, Contributions & Donations",A47005,
http://opendatacommunities.org/id/london-borough-council/sutton,London Borough of Sutton,19/08/2021,10004034,294.00, CURRYS ONLINE,CL&G,Resources,"Grants, Contributions & Donations",A47005,
http://opendatacommunities.org/id/london-borough-council/sutton,London Borough of Sutton,17/08/2021,10004034,294.00, CURRYS ONLINE,CL&G,Resources,"Grants, Contributions & Donations",A47005,
http://opendatacommunities.org/id/london-borough-council/sutton,London Borough of Sutton,17/08/2021,10004034,523.99, CURRYS ONLINE,CL&G,Resources,"Grants, Contributions & Donations",A47005,
http://opendatacommunities.org/id/london-borough-council/sutton,London Borough of Sutton,17/08/2021,10004034,155.00, ARGOS LTD,CL&G,Resources,"Grants, Contributions & Donations",A47005,
http://opendatacommunities.org/id/london-borough-council/sutton,London Borough of Sutton,17/08/2021,10004034,286.95, ARGOS LTD,CL&G,Resources,"Grants, Contributions & Donations",A47005,
http://opendatacommunities.org/id/london-borough-council/sutton,London Borough of Sutton,17/08/2021,10004034,-294.00, CURRYS ONLINE,CL&G,Resources,"Grants, Contributions & Donations",A47005,
http://opendatacommunities.org/id/london-borough-council/sutton,London Borough of Sutton,16/08/2021,10004034,173.95, ARGOS LTD,CL&G,Resources,"Grants, Contributions & Donations",A47005,
http://opendatacommunities.org/id/london-borough-council/sutton,London Borough of Sutton,10/08/2021,10004034,453.99, CURRYS ONLINE,CL&G,Resources,"Grants, Contributions & Donations",A47005,
http://opendatacommunities.org/id/london-borough-council/sutton,London Borough of Sutton,10/08/2021,10004034,286.95, ARGOS LTD,CL&G,Resources,"Grants, Contributions & Donations",A47005,
http://opendatacommunities.org/id/london-borough-council/sutton,London Borough of Sutton,10/08/2021,10004034,286.95, ARGOS LTD,CL&G,Resources,"Grants, Contributions & Donations",A47005,
http://opendatacommunities.org/id/london-borough-council/sutton,London Borough of Sutton,09/08/2021,10004034,123.95, ARGOS LTD,CL&G,Resources,"Grants, Contributions & Donations",A47005,
http://opendatacommunities.org/id/london-borough-council/sutton,London Borough of Sutton,09/08/2021,10004034,324.00, CURRYS ONLINE,CL&G,Resources,"Grants, Contributions & Donations",A47005,
http://opendatacommunities.org/id/london-borough-council/sutton,London Borough of Sutton,09/08/2021,10004034,269.99, ARGOS LTD,CL&G,Resources,"Grants, Contributions & Donations",A47005,
http://opendatacommunities.org/id/london-borough-council/sutton,London Borough of Sutton,06/08/2021,10004034,238.95, ARGOS LTD,CL&G,Resources,"Grants, Contributions & Donations",A47005,
http://opendatacommunities.org/id/london-borough-council/sutton,London Borough of Sutton,06/08/2021,10004034,498.99, CURRYS ONLINE,CL&G,Resources,"Grants, Contributions & Donations",A47005,
http://opendatacommunities.org/id/london-borough-council/sutton,London Borough of Sutton,05/08/2021,10004034,354.00, CURRYS ONLINE,CL&G,Resources,"Grants, Contributions & Donations",A47005,
http://opendatacommunities.org/id/london-borough-council/sutton,London Borough of Sutton,05/08/2021,10004034,173.95, ARGOS LTD,CL&G,Resources,"Grants, Contributions & Donations",A47005,
http://opendatacommunities.org/id/london-borough-council/sutton,London Borough of Sutton,02/08/2021,10004034,623.98, CURRYS ONLINE,CL&G,Resources,"Grants, Contributions & Donations",A47005,
http://opendatacommunities.org/id/london-borough-council/sutton,London Borough of Sutton,02/08/2021,10004034,-294.00, CURRYS ONLINE,CL&G,Resources,"Grants, Contributions & Donations",A47005,
http://opendatacommunities.org/id/london-borough-council/sutton,London Borough of Sutton,30/07/2021,10004034,268.95, ARGOS LTD,CL&G,Resources,"Grants, Contributions & Donations",A47005,
http://opendatacommunities.org/id/london-borough-council/sutton,London Borough of Sutton,29/07/2021,10004034,324.00, CURRYS ONLINE,CL&G,Resources,"Grants, Contributions & Donations",A47005,
http://opendatacommunities.org/id/london-borough-council/sutton,London Borough of Sutton,28/07/2021,10004034,153.95, ARGOS LTD,CL&G,Resources,"Grants, Contributions & Donations",A47005,
http://opendatacommunities.org/id/london-borough-council/sutton,London Borough of Sutton,28/07/2021,10004034,523.99, CURRYS ONLINE,CL&G,Resources,"Grants, Contributions & Donations",A47005,
http://opendatacommunities.org/id/london-borough-council/sutton,London Borough of Sutton,28/07/2021,10004034,561.95, ARGOS LTD,CL&G,Resources,"Grants, Contributions & Donations",A47005,
http://opendatacommunities.org/id/london-borough-council/sutton,London Borough of Sutton,28/07/2021,10004034,253.95, ARGOS LTD,CL&G,Resources,"Grants, Contributions & Donations",A47005,
http://opendatacommunities.org/id/london-borough-council/sutton,London Borough of Sutton,26/07/2021,10004034,103.95, ARGOS LTD,CL&G,Resources,"Grants, Contributions & Donations",A47005,
http://opendatacommunities.org/id/london-borough-council/sutton,London Borough of Sutton,26/07/2021,10004034,458.99, CURRYS ONLINE,CL&G,Resources,"Grants, Contributions & Donations",A47005,
http://opendatacommunities.org/id/london-borough-council/sutton,London Borough of Sutton,26/07/2021,10004034,458.99, CURRYS ONLINE,CL&G,Resources,"Grants, Contributions & Donations",A47005,
http://opendatacommunities.org/id/london-borough-council/sutton,London Borough of Sutton,30/07/2021,10004034,-254.99, ARGOS LTD,REFUND,Resources,"Grants, Contributions & Donations",A47005,
http://opendatacommunities.org/id/london-borough-council/sutton,London Borough of Sutton,23/08/2021,10004034,200.00, THOMSON REUTERS UK LTD,JCT DESIGN & BUILD DIGITAL SUB-CONTRACTOR COLLATERAL WARRANTY FOR THE EMPLOYER 2016 FOR THE LBS SOCIAL HOUSING PHASE 2A PROJECT,Resources,Stationery,A43015,
http://opendatacommunities.org/id/london-borough-council/sutton,London Borough of Sutton,03/08/2021,10004034,144.00, THOMSON REUTERS UK LTD,JCT DESIGN & BUILD DIGITAL CONTRACT FOR THE LBS SOCIAL HOUSING PHASE 2A PROJECT,Resources,Stationery,A43015,
http://opendatacommunities.org/id/london-borough-council/sutton,London Borough of Sutton,28/07/2021,10004034,1.50, WWW.GOV.UK,WILL/PROBATE SEARCH,Resources,Legal Services,A44025,
http://opendatacommunities.org/id/london-borough-council/sutton,London Borough of Sutton,27/07/2021,10004034,40.00, WP-COURTEL COMMUNI,HOUSING FINANCE - SUBSCRIPTION PERIOD: ONE YEAR UNTIL 26 JULY 2022,Resources,Subscriptions,A47010,
http://opendatacommunities.org/id/london-borough-council/sutton,London Borough of Sutton,25/08/2021,10004034,345.00, WWW.PMGLTD.CO.UK,CONFIDENT COMMUNICATION AND ASSERTIVENESS TRAINING,Environment Housing and Neighbourhoods,Staff Development And Training,A15022,
http://opendatacommunities.org/id/london-borough-council/sutton,London Borough of Sutton,29/07/2021,10004034,175.00, APM,APM MEMBERSHIP,Environment Housing and Neighbourhoods,Subscriptions,A47010,
http://opendatacommunities.org/id/london-borough-council/sutton,London Borough of Sutton,23/08/2021,10004034,47.70, WWW.NISBETS.COM,ITEM NEEDED FOR SOCIAL WORKER,Peoples Services,Cleaning Supplies,A27020,
http://opendatacommunities.org/id/london-borough-council/sutton,London Borough of Sutton,30/07/2021,10004034,38.32, AMZNMKTPLACE AMAZON.CO,SPLIT - BORPEIN NO STING SURFACE 6 INCH DODGEBALL SET WITH MESH STORAGE BAG-6 PACK (6'') (100%),Peoples Services,Equipment And Materials Purchase,A40000,
http://opendatacommunities.org/id/london-borough-council/sutton,London Borough of Sutton,28/07/2021,10004034,9.99, AMZNMKTPLACE AMAZON.CO,"SPLIT - POLYMER CLAY 24 COLORS OVEN BAKE DIY COLORFUL CLAY SAFE AND NONTOXIC SOFT MODELLING MOULDING COLORFUL DIY TOYS BY SCHOONE, BEST GIFT FOR KIDS (33.32%)",Peoples Services,Equipment And Materials Purchase,A40000,
http://opendatacommunities.org/id/london-borough-council/sutton,London Borough of Sutton,28/07/2021,10004034,19.99, AMZNMKTPLACE AMAZON.CO,"SPLIT - FIDGET PACK, 30 PCS FIDGET TOY SET FOR KIDS ADULTS, SENSORY ANXIETY RELIEF STRESS TOYS FOR AUTISM, SIMPLE FIDGET TOY PACK WITH POPPET FIDGET TOY FOR B (66.68%)",Peoples Services,Equipment And Materials Purchase,A40000,
http://opendatacommunities.org/id/london-borough-council/sutton,London Borough of Sutton,28/07/2021,10004034,32.49, AMZNMKTPLACE AMAZON.CO,"SPLIT - BIG GAME HUNTERS JUMBO HI-TOWER IN A BAG, BUILDS FROM 0.6 METRES UP TO 1.5 METRES HIGH IN PLAY, GARDEN GAMES LARGE OUTDOOR TUMBLE TOWER (59.13%)",Peoples Services,Equipment And Materials Purchase,A40000,
http://opendatacommunities.org/id/london-borough-council/sutton,London Borough of Sutton,28/07/2021,10004034,22.46, AMZNMKTPLACE AMAZON.CO,SPLIT - BIG GAME HUNTERS TRADITIONAL ROUNDERS SET WITH OFFICIAL REGULATION FULL SIZE BAT IN CANVAS CASE (40.87%),Peoples Services,Equipment And Materials Purchase,A40000,
http://opendatacommunities.org/id/london-borough-council/sutton,London Borough of Sutton,28/07/2021,10004034,145.79, AMZNMKTPLACE AMAZON.CO,SPLIT - UP 4 IT. GENUINELY GIANT CONNECT 4 IN A ROW GAME. 110CM X 146CM (100%),Peoples Services,Equipment And Materials Purchase,A40000,
http://opendatacommunities.org/id/london-borough-council/sutton,London Borough of Sutton,28/07/2021,10004034,29.82, AMZNMKTPLACE AMAZON.CO,"SPLIT - URBAN POP UP BADMINTON SET [FULL SET] &#X2022; SIZE 3M &#X2022; INCLUDES: 2 X RACKETS, 2 X SHUTTLECOCKS, 1 X NET & POST AND STORAGE CASE (89.58%)",Peoples Services,Equipment And Materials Purchase,A40000,
http://opendatacommunities.org/id/london-borough-council/sutton,London Borough of Sutton,28/07/2021,10004034,3.46, AMZNMKTPLACE AMAZON.CO,BALANCING ENTRY AMOUNT (10.42%),Peoples Services,Equipment And Materials Purchase,A40000,
http://opendatacommunities.org/id/london-borough-council/sutton,London Borough of Sutton,02/08/2021,10004034,95.48, EMPIRE CINEMAS,CINEMA TICKETS,Peoples Services,Equipment And Materials Purchase,A40000,
http://opendatacommunities.org/id/london-borough-council/sutton,London Borough of Sutton,12/08/2021,10004034,15.65, MCDONALDS,RM AND MC ACTIVITY,Peoples Services,Equipment And Materials Purchase,A40000,
http://opendatacommunities.org/id/london-borough-council/sutton,London Borough of Sutton,09/08/2021,10004034,5.50, COX PIPPIN CAFE,RA ACTIVITY,Peoples Services,Equipment And Materials Purchase,A40000,
http://opendatacommunities.org/id/london-borough-council/sutton,London Borough of Sutton,17/08/2021,10004034,14.30, SAINSBURYS S/MKTS,JB,Peoples Services,Equipment And Materials Purchase,A40000,
http://opendatacommunities.org/id/london-borough-council/sutton,London Borough of Sutton,16/08/2021,10004034,4.78, MCDONALDS911,MC ACTIVITY,Peoples Services,Equipment And Materials Purchase,A40000,
http://opendatacommunities.org/id/london-borough-council/sutton,London Borough of Sutton,19/08/2021,10004034,291.67, IZ  MISTER SOFTEE,ICE CREAM VAN FOR A FUN DAY AT THE QUAD,Peoples Services,Equipment And Materials Purchase,A40000,
http://opendatacommunities.org/id/london-borough-council/sutton,London Borough of Sutton,22/08/2021,10004034,89.62, AMAZON.CO.UK 5A5901ZS5,SPLIT - HP ENVY 6420E ALL IN ONE COLOUR PRINTER WITH 6 MONTHS OF INSTANT INK WITH HP+ (100%),Peoples Services,Miscellaneous Expenses,A49000,
http://opendatacommunities.org/id/london-borough-council/sutton,London Borough of Sutton,27/07/2021,10004034,87.62, HOTELSCOM9189069307049,PRINCE RUPERT HOTEL,Peoples Services,Approved Lodgings,A61000,
http://opendatacommunities.org/id/london-borough-council/sutton,London Borough of Sutton,18/08/2021,10004034,40.00, WWW.RANDOXHEALTH.COM,"REQUESTED BY SOCIAL WORKER, ITEMS",Peoples Services,Client Care/Assistance,A61011,
http://opendatacommunities.org/id/london-borough-council/sutton,London Borough of Sutton,11/08/2021,10004034,347.44, ARGOS LTD,SETTING UP FOR A YP,Peoples Services,Set Up Costs - Children Leaving Care,A61021,
http://opendatacommunities.org/id/london-borough-council/sutton,London Borough of Sutton,11/08/2021,10004034,23.29, ARGOS LTD,SETTING UP FOR A YP,Peoples Services,Set Up Costs - Children Leaving Care,A61021,
http://opendatacommunities.org/id/london-borough-council/sutton,London Borough of Sutton,10/08/2021,10004034,170.37, WF  WAYFAIR3590166624,SETTING UP FOR A YP,Peoples Services,Set Up Costs - Children Leaving Care,A61021,
http://opendatacommunities.org/id/london-borough-council/sutton,London Borough of Sutton,10/08/2021,10004034,312.75, WWW.STUDIO.CO.UK,SETTING UP FOR A YP,Peoples Services,Set Up Costs - Children Leaving Care,A61021,
http://opendatacommunities.org/id/london-borough-council/sutton,London Borough of Sutton,08/07/2021,10004034,-159.20, DREAMS,setting up for young person,Peoples Services,Set Up Costs - Children Leaving Care,A61021,
http://opendatacommunities.org/id/london-borough-council/sutton,London Borough of Sutton,26/07/2021,10004034,28.95, ARGOS LTD,FURNITURE,Peoples Services,Set Up Costs - Children Leaving Care,A61021,
http://opendatacommunities.org/id/london-borough-council/sutton,London Borough of Sutton,30/07/2021,10004034,394.00, AO RETAIL LIMITED,AO PURCHASE - COOKER,Peoples Services,Set Up Costs - Children Leaving Care,A61021,
http://opendatacommunities.org/id/london-borough-council/sutton,London Borough of Sutton,29/07/2021,10004034,269.99, ARGOS LTD,ARGOS ORDER - WASHING MACHINE,Peoples Services,Set Up Costs - Children Leaving Care,A61021,
http://opendatacommunities.org/id/london-borough-council/sutton,London Borough of Sutton,08/08/2021,10004034,-95.00, AO RETAIL LIMITED,REFUND,Peoples Services,Set Up Costs - Children Leaving Care,A61021,
http://opendatacommunities.org/id/london-borough-council/sutton,London Borough of Sutton,28/07/2021,10004034,236.49, LA REDOUTE,CRAWLEY BED GREY DOUBLE (140 X 190CM),Peoples Services,Set Up Costs - Children Leaving Care,A61021,
http://opendatacommunities.org/id/london-borough-council/sutton,London Borough of Sutton,26/07/2021,10004034,188.00, FO CROYDON VIA RLLR.CO,HARRIS TRADITIONAL SPRING MATTRESS,Peoples Services,Set Up Costs - Children Leaving Care,A61021,
http://opendatacommunities.org/id/london-borough-council/sutton,London Borough of Sutton,28/07/2021,10004034,182.95, ARGOS LTD,ARGOS ORDER - 1 X BED,Peoples Services,Set Up Costs - Children Leaving Care,A61021,
http://opendatacommunities.org/id/london-borough-council/sutton,London Borough of Sutton,23/08/2021,10004034,20.83, ARGOS LTD,SETTING UP ALLOWANCE,Peoples Services,Set Up Costs - Children Leaving Care,A61021,
http://opendatacommunities.org/id/london-borough-council/sutton,London Borough of Sutton,20/08/2021,10004034,241.66, ARGOS LTD,SETTING UP ALLOWANCE FOR YOUNG PERSON,Peoples Services,Set Up Costs - Children Leaving Care,A61021,
http://opendatacommunities.org/id/london-borough-council/sutton,London Borough of Sutton,04/08/2021,10004034,874.36, CARPETRIGHT,CARPETRITE,Peoples Services,Set Up Costs - Children Leaving Care,A61021,
http://opendatacommunities.org/id/london-borough-council/sutton,London Borough of Sutton,23/08/2021,10004034,320.00, CURRYS ONLINE,ITEMS NEEDED FOR LEAVING CARE CHILD,Peoples Services,Set Up Costs - Children Leaving Care,A61021,
http://opendatacommunities.org/id/london-borough-council/sutton,London Borough of Sutton,13/08/2021,10004034,544.96, AMZNMKTPLACE AMAZON.CO,MC SET UP,Peoples Services,Set Up Costs - Children Leaving Care,A61021,
http://opendatacommunities.org/id/london-borough-council/sutton,London Borough of Sutton,23/07/2021,10004034,-207.20, CURRYS ONLINE,setting up for young person,Peoples Services,Set Up Costs - Children Leaving Care,A61021,
http://opendatacommunities.org/id/london-borough-council/sutton,London Borough of Sutton,23/08/2021,10004034,494.11, ARGOS LTD,ITEMS NEEDED FOR LEAVING CARE CHILD,Peoples Services,Equipment And Materials Purchase,A40000,
http://opendatacommunities.org/id/london-borough-council/sutton,London Borough of Sutton,23/08/2021,10004034,53.99, AMAZON.CO.UK SL5GQ0PY5,SPLIT - REDSTONE COMPUTER DESK 3 DRAWERS 3 SHELVES (WHITE) (100%),Peoples Services,Equipment And Materials Purchase,A40000,
http://opendatacommunities.org/id/london-borough-council/sutton,London Borough of Sutton,19/08/2021,10004034,83.33, PARKERS CAFE LTD,CONTACT SERVICE,Peoples Services,Miscellaneous Expenses,A49000,
http://opendatacommunities.org/id/london-borough-council/sutton,London Borough of Sutton,25/08/2021,10004034,34.17, PAYPAL  LEISUREQUES,SUPERVISED CONTACT,Peoples Services,Miscellaneous Expenses,A49000,
http://opendatacommunities.org/id/london-borough-council/sutton,London Borough of Sutton,10/08/2021,10004034,55.00, DOLFORWYN HALL HOTEL L,55 A61000 G03050 DOLFORWYN HALL COUNTRY HOTEL.PDF,Peoples Services,Approved Lodgings,A61000,
http://opendatacommunities.org/id/london-borough-council/sutton,London Borough of Sutton,20/08/2021,10004034,27.50, LBS REGISTRARS,BIRTH CERTIFICATE FOR YOUNG PERSON,Peoples Services,C.C.A Travel & Subsistance,A61010,
http://opendatacommunities.org/id/london-borough-council/sutton,London Borough of Sutton,20/08/2021,10004034,49.72, MINICABIT,YOUNG PERSON TAXI,Peoples Services,C.C.A Travel & Subsistance,A61010,
http://opendatacommunities.org/id/london-borough-council/sutton,London Borough of Sutton,02/08/2021,10004034,152.98, TRAVELODGE,TRAVELODGE BOOKING,Peoples Services,Client Care/Assistance,A61011,
http://opendatacommunities.org/id/london-borough-council/sutton,London Borough of Sutton,23/07/2021,10004034,59.20, MINICABIT,taxi needed for a young person,Peoples Services,C.C.A Travel & Subsistance,A61010,
http://opendatacommunities.org/id/london-borough-council/sutton,London Borough of Sutton,19/08/2021,10004034,14.99, AMZNMKTPLACE,SPLIT - G4FREE OUTDOOR BACKPACK MULTIPURPOSE DAYPACK SMALL HIKING RUCKSACK MINI BOOKBAGS 10L FOR ADULTS AND TEENAGERS (100%),Peoples Services,Equipment And Materials Purchase,A40000,
http://opendatacommunities.org/id/london-borough-council/sutton,London Borough of Sutton,18/08/2021,10004034,12.99, AMZNMKTPLACE,SPLIT - 10 A3 ZIP BAG DOCUMENT WALLET POUCH ASSORTED COLORS (100%),Peoples Services,Equipment And Materials Purchase,A40000,
http://opendatacommunities.org/id/london-borough-council/sutton,London Borough of Sutton,18/08/2021,10004034,27.99, AMZNMKTPLACE,SPLIT - SCHOOL BAG WATERPROOF RUCKSACK FOR BOYS GIRLS KIDS COLLEGE TRAVEL LAPTOP BACKPACK WITH USB CHARGING PORT CASUAL DAYPACK (BLACK) (100%),Peoples Services,Equipment And Materials Purchase,A40000,
http://opendatacommunities.org/id/london-borough-council/sutton,London Borough of Sutton,17/08/2021,10004034,20.76, AMZNMKTPLACE,"SPLIT - MINI FIRST AID KIT, 92 PIECES SMALL FIRST AID KIT - INCLUDES EMERGENCY FOIL BLANKET, SCISSORS FOR TRAVEL, HOME, OFFICE, VEHICLE, CAMPING, WORKPLACE & (83.34%)",Peoples Services,Equipment And Materials Purchase,A40000,
http://opendatacommunities.org/id/london-borough-council/sutton,London Borough of Sutton,17/08/2021,10004034,4.15, AMZNMKTPLACE,BALANCING ENTRY AMOUNT (16.66%),Peoples Services,Equipment And Materials Purchase,A40000,
http://opendatacommunities.org/id/london-borough-council/sutton,London Borough of Sutton,27/07/2021,10004034,159.80, HOTEL AT BOOKING.COM,HOTEL STAY,Peoples Services,Client Care/Assistance,A61011,
http://opendatacommunities.org/id/london-borough-council/sutton,London Borough of Sutton,29/07/2021,10004034,254.00, CURRYS ONLINE,CURRYS ORDER - COOKER,Peoples Services,Set Up Costs - Children Leaving Care,A61021,
http://opendatacommunities.org/id/london-borough-council/sutton,London Borough of Sutton,23/07/2021,10004034,435.19, CURRYS ONLINE,setting up for young person,Peoples Services,Set Up Costs - Children Leaving Care,A61021,
http://opendatacommunities.org/id/london-borough-council/sutton,London Borough of Sutton,12/08/2021,10004034,209.99, AMZNMKTPLACE,SPLIT - RELIANCE ORTHO DIVAN BED DOUBEL 4FT 6 WITH MATTRESS AND HEADBOARD AND 2 DRAWERS - DOUBLE (4'6) (100%),Peoples Services,Set Up Costs - Children Leaving Care,A61021,
http://opendatacommunities.org/id/london-borough-council/sutton,London Borough of Sutton,03/08/2021,10004034,-187.49, ZOOM.US 888-799-9666,REFUND FROM AMAZON AS CLIENT DID NOT NEED IT,Peoples Services,Set Up Costs - Children Leaving Care,A61021,
http://opendatacommunities.org/id/london-borough-council/sutton,London Borough of Sutton,19/08/2021,10004034,491.67, IKEA LTD SHOP ONLINE,SETTING UP FOR A CLIENT,Peoples Services,Set Up Costs - Children Leaving Care,A61021,
http://opendatacommunities.org/id/london-borough-council/sutton,London Borough of Sutton,23/08/2021,10004034,94.96, ARGOS LTD,ITEMS NEEDED FOR LEAVING CARE CHILD,Peoples Services,Set Up Costs - Children Leaving Care,A61021,
http://opendatacommunities.org/id/london-borough-council/sutton,London Borough of Sutton,29/07/2021,10004034,85.00, SUTTON APPLIANCES,APPLIANCES,Peoples Services,Set Up Costs - Children Leaving Care,A61021,
http://opendatacommunities.org/id/london-borough-council/sutton,London Borough of Sutton,23/07/2021,10004034,389.55, ARGOS LTD,setting up for young person,Peoples Services,Set Up Costs - Children Leaving Care,A61021,
http://opendatacommunities.org/id/london-borough-council/sutton,London Borough of Sutton,19/08/2021,10004034,26.63, VUE ENTERTAINMENT LTD,SUPERVISED MEETING CONTACT,Peoples Services,Equipment And Materials Purchase,A40000,
http://opendatacommunities.org/id/london-borough-council/sutton,London Borough of Sutton,18/08/2021,10004034,159.90, ZOOM.US 888-799-9666,NEEDED FOR BIG TEAM MEETINGS,Peoples Services,Subscriptions,A47010,
http://opendatacommunities.org/id/london-borough-council/sutton,London Borough of Sutton,25/08/2021,10004034,59.95, ZOOM.US 888-799-9666,ZOOM NEEDED FOR BIG TEAM MEETINGS,Peoples Services,Subscriptions,A47010,
http://opendatacommunities.org/id/london-borough-council/sutton,London Borough of Sutton,24/07/2021,10004034,57.55, ZOOM,�account needed for team meetings,Peoples Services,Subscriptions,A47010,
http://opendatacommunities.org/id/london-borough-council/sutton,London Borough of Sutton,23/07/2021,10004034,460.40, PREMIER INN,hotel needed for client no funds,Peoples Services,C.C.A Rent & Utilities,A61009,
http://opendatacommunities.org/id/london-borough-council/sutton,London Borough of Sutton,05/08/2021,10004034,50.20, WWW.HOVERTRAVEL.COM,TRAVEL,Peoples Services,Equipment And Materials Purchase,A40000,
http://opendatacommunities.org/id/london-borough-council/sutton,London Borough of Sutton,27/07/2021,10004034,15.00, EASYJET,FLIGHT AMENDMENT (DATE CHANGE) EASYJET,Peoples Services,Equipment And Materials Purchase,A40000,
http://opendatacommunities.org/id/london-borough-council/sutton,London Borough of Sutton,03/08/2021,10004034,-33.00, LBS REGISTRARS,BIRTH CERTIFICATE ORDER REFUND,Peoples Services,Equipment And Materials Purchase,A40000,
http://opendatacommunities.org/id/london-borough-council/sutton,London Borough of Sutton,02/08/2021,10004034,33.00, LBS REGISTRARS,BIRTH CERTIFICATE ORDER,Peoples Services,Equipment And Materials Purchase,A40000,
http://opendatacommunities.org/id/london-borough-council/sutton,London Borough of Sutton,30/07/2021,10004034,103.20, LOCKMEADOW ENTERTAINME,GRAVITY MAIDSTONE,Peoples Services,Equipment And Materials Purchase,A40000,
http://opendatacommunities.org/id/london-borough-council/sutton,London Borough of Sutton,04/08/2021,10004034,127.99, AMZNMKTPLACE AMAZON.CO,SPLIT - LETTAS CONVERTIBLLE 0+1/2/3 PLUS GROUP (0-36 KG/0-12 YEAR) COMBINATION BABY CAR SEAT FOR CHILD (100%),Peoples Services,Equipment And Materials Purchase,A40000,
http://opendatacommunities.org/id/london-borough-council/sutton,London Borough of Sutton,04/08/2021,10004034,370.00, WWW.KENT.GOV.UK,BUS PASS PURCHASE,Peoples Services,Client Care/Assistance,A61011,
http://opendatacommunities.org/id/london-borough-council/sutton,London Borough of Sutton,26/07/2021,10004034,152.96, TENPIN.CO.UK,ACTIVITY,Peoples Services,Client Care/Assistance,A61011,
http://opendatacommunities.org/id/london-borough-council/sutton,London Borough of Sutton,26/07/2021,10004034,114.72, TENPIN.CO.UK,ACTIVITY,Peoples Services,Client Care/Assistance,A61011,
http://opendatacommunities.org/id/london-borough-council/sutton,London Borough of Sutton,06/08/2021,10004034,36.00, LB CROYDON,BIRTH CERTIFICATE PURCHASE,Peoples Services,Equipment And Materials Purchase,A40000,
http://opendatacommunities.org/id/london-borough-council/sutton,London Borough of Sutton,06/08/2021,10004034,218.84, WIZZ AIR  OFM8GT,COST OF AIR FARE TO BUDAPEST,Peoples Services,Equipment And Materials Purchase,A40000,
http://opendatacommunities.org/id/london-borough-council/sutton,London Borough of Sutton,02/08/2021,10004034,49.51, TESCO STORES 5999,FOOD SHOP,Peoples Services,Equipment And Materials Purchase,A40000,
http://opendatacommunities.org/id/london-borough-council/sutton,London Borough of Sutton,02/08/2021,10004034,-4.70, TESCO STORES 5999,REFUND,Peoples Services,Equipment And Materials Purchase,A40000,
http://opendatacommunities.org/id/london-borough-council/sutton,London Borough of Sutton,27/07/2021,10004034,83.32, AMZNMKTPLACE,"SPLIT - EUFY SECURITY, BATTERY VIDEO DOORBELL WIRELESS KIT, CAMERA DOORBELL, FREE WIRELESS CHIME, WHITE, WI-FI CONNECTIVITY, 1080P-GRADE RESOLUTION, NO MONTHL (81.87%)",Peoples Services,Equipment And Materials Purchase,A40000,
http://opendatacommunities.org/id/london-borough-council/sutton,London Borough of Sutton,27/07/2021,10004034,18.46, AMZNMKTPLACE,"SPLIT - SANDISK EXTREME 128 GB MICROSDXC MEMORY CARD + SD ADAPTER WITH A2 APP PERFORMANCE + RESCUE PRO DELUXE, UP TO 160 MB/S, CLASS 10, UHS-I, U3, V30 , RED/ (18.13%)",Peoples Services,Equipment And Materials Purchase,A40000,
http://opendatacommunities.org/id/london-borough-council/sutton,London Borough of Sutton,20/08/2021,10004034,27.50, LBS REGISTRARS,BIRTH CERTIFICATE FOR YOUNG PERSON,Peoples Services,Equipment And Materials Purchase,A40000,
http://opendatacommunities.org/id/london-borough-council/sutton,London Borough of Sutton,20/08/2021,10004034,27.50, LBS REGISTRARS,BIRTH CERTIFICATE FOR YOUNG PERSON,Peoples Services,Equipment And Materials Purchase,A40000,
http://opendatacommunities.org/id/london-borough-council/sutton,London Borough of Sutton,20/08/2021,10004034,27.50, LBS REGISTRARS,BIRTH CERTIFICATE FOR YOUNG PERSON,Peoples Services,Equipment And Materials Purchase,A40000,
http://opendatacommunities.org/id/london-borough-council/sutton,London Borough of Sutton,20/08/2021,10004034,27.50, LBS REGISTRARS,BIRTH CERTIFICATE FOR YOUNG PERSON,Peoples Services,Equipment And Materials Purchase,A40000,
http://opendatacommunities.org/id/london-borough-council/sutton,London Borough of Sutton,24/08/2021,10004034,-27.50, LBS REGISTRARS,BIRTH CERTIFICATE FOR A CHILD,Peoples Services,Equipment And Materials Purchase,A40000,
http://opendatacommunities.org/id/london-borough-council/sutton,London Borough of Sutton,30/07/2021,10004034,25.10, WWW.HOVERTRAVEL.COM,HOVERTRAVEL,Peoples Services,Client Care/Assistance,A61011,
http://opendatacommunities.org/id/london-borough-council/sutton,London Borough of Sutton,28/07/2021,10004034,139.98, TRAVELODGE,HOTEL STAY,Peoples Services,Equipment And Materials Purchase,A40000,
http://opendatacommunities.org/id/london-borough-council/sutton,London Borough of Sutton,23/08/2021,10004034,367.87, TRAVELODGE,HOTEL NEEDED FOR CLIENT,Peoples Services,Miscellaneous Expenses,A49000,
http://opendatacommunities.org/id/london-borough-council/sutton,London Borough of Sutton,23/08/2021,10004034,511.19, TRAVELODGE,HOTEL NEEDED FOR CLIENT,Peoples Services,Miscellaneous Expenses,A49000,
http://opendatacommunities.org/id/london-borough-council/sutton,London Borough of Sutton,04/08/2021,10004034,19.11, STATION CARS,TAXI BOOKING,Peoples Services,Miscellaneous Expenses,A49000,
http://opendatacommunities.org/id/london-borough-council/sutton,London Borough of Sutton,02/08/2021,10004034,549.43, TRAVELODGE,TRAVELODGE BOOKING,Peoples Services,C.C.A Rent & Utilities,A61009,
http://opendatacommunities.org/id/london-borough-council/sutton,London Borough of Sutton,02/08/2021,10004034,64.00, PREMIER INN,PREMIER INN BOOKING,Peoples Services,C.C.A Rent & Utilities,A61009,
http://opendatacommunities.org/id/london-borough-council/sutton,London Borough of Sutton,03/08/2021,10004034,122.87, GAR HOTEL RES,HOLIDAY INN BOOKING,Peoples Services,C.C.A Rent & Utilities,A61009,
http://opendatacommunities.org/id/london-borough-council/sutton,London Borough of Sutton,09/08/2021,10004034,997.77, TRAVELODGE,HOTEL NEEDED FOR A NO RECOURSE TO PUBLIC FUNDS CLIENT,Peoples Services,Client Care/Assistance,A61011,
http://opendatacommunities.org/id/london-borough-council/sutton,London Borough of Sutton,12/08/2021,10004034,70.00, FACEBK  P8DLF4BH32,FACEBOOK ADVERTISING FOR FOSTERING RECRUITMENT CAMPAIGN,Peoples Services,Recruitment Expenses,A15026,
http://opendatacommunities.org/id/london-borough-council/sutton,London Borough of Sutton,26/07/2021,10004034,21.72, FACEBK  98T2U4PG32,FACEBOOK ADVERTISING FOR FOSTERING RECRUITMENT,Peoples Services,Recruitment Expenses,A15026,
http://opendatacommunities.org/id/london-borough-council/sutton,London Borough of Sutton,03/08/2021,10004034,13.00, RB KEN&CHELSEA,BIRTH CERTIFICATE ORDER,Peoples Services,Equipment And Materials Purchase,A40000,
http://opendatacommunities.org/id/london-borough-council/sutton,London Borough of Sutton,28/07/2021,10004034,334.98, TRAVELODGE,TRAVELODGE PAYMENT,Peoples Services,Hotel Accomodation,A46010,
http://opendatacommunities.org/id/london-borough-council/sutton,London Borough of Sutton,19/08/2021,10004034,339.96, TRAVELODGE,HOTEL NEEDED FOR CLIENT,Peoples Services,Client Care/Assistance,A61011,
http://opendatacommunities.org/id/london-borough-council/sutton,London Borough of Sutton,18/08/2021,10004034,120.83, WEST QUAY CARS,TAXI BOOKING FOR A YOUNG PERSON,Peoples Services,Client Care/Assistance,A61011,
http://opendatacommunities.org/id/london-borough-council/sutton,London Borough of Sutton,19/08/2021,10004034,20.83, WEST QUAY CARS,TAXI BOOKING FOR A YOUNG PERSON,Peoples Services,Client Care/Assistance,A61011,
http://opendatacommunities.org/id/london-borough-council/sutton,London Borough of Sutton,16/08/2021,10004034,13.87, AMZNMKTPLACE AMAZON.CO,"SPLIT - ACRYLIC PAINT PENS FOR ROCK PAINTING, STONE, PEBBLES, CERAMIC, GLASS, WOOD. SET OF 12 ACRYLIC PAINT MARKERS EXTRA-FINE TIP 0.7MM. (90.95%)",Peoples Services,Equipment And Materials Purchase,A40000,
http://opendatacommunities.org/id/london-borough-council/sutton,London Borough of Sutton,16/08/2021,10004034,1.38, AMZNMKTPLACE AMAZON.CO,BALANCING ENTRY AMOUNT (9.05%),Peoples Services,Equipment And Materials Purchase,A40000,
http://opendatacommunities.org/id/london-borough-council/sutton,London Borough of Sutton,16/08/2021,10004034,22.28, AMZNMKTPLACE AMAZON.CO,"SPLIT - DR ZIGS GIANT BUBBLES KITS - BEST HUGE BUBBLE MAKING SET, FUN GARDEN TOYS FOR KIDS, TODDLERS AND ADULTS, WANDS, SOAP SOLUTION AND BOOKLET INCLUDED, MA (65.13%)",Peoples Services,Equipment And Materials Purchase,A40000,
http://opendatacommunities.org/id/london-borough-council/sutton,London Borough of Sutton,16/08/2021,10004034,9.16, AMZNMKTPLACE AMAZON.CO,"SPLIT - BAKER ROSS EK506 PORCELAIN CERAMIC TILE MAGNETS (PACK OF 10) FOR KIDS TO DECORATE, PAINT YOUR OWN ARTS & CRAFTS ACTIVITIES, ASSORTED (26.78%)",Peoples Services,Equipment And Materials Purchase,A40000,
http://opendatacommunities.org/id/london-borough-council/sutton,London Borough of Sutton,16/08/2021,10004034,2.77, AMZNMKTPLACE AMAZON.CO,BALANCING ENTRY AMOUNT (8.09%),Peoples Services,Equipment And Materials Purchase,A40000,
http://opendatacommunities.org/id/london-borough-council/sutton,London Borough of Sutton,18/08/2021,10004034,18.60, AMAZON.CO.UK AR67F34R5,"SPLIT - BAKER ROSS EK506 PORCELAIN CERAMIC TILE MAGNETS (PACK OF 10) FOR KIDS TO DECORATE, PAINT YOUR OWN ARTS & CRAFTS ACTIVITIES, ASSORTED (81.76%)",Peoples Services,Equipment And Materials Purchase,A40000,
http://opendatacommunities.org/id/london-borough-council/sutton,London Borough of Sutton,18/08/2021,10004034,4.15, AMAZON.CO.UK AR67F34R5,BALANCING ENTRY AMOUNT (18.24%),Peoples Services,Equipment And Materials Purchase,A40000,
http://opendatacommunities.org/id/london-borough-council/sutton,London Borough of Sutton,17/08/2021,10004034,19.99, AMZNMKTPLACE AMAZON.CO,"SPLIT - HELLO SUMMER HS010 GIANT JUMBO WOODEN BLOCKS OUTDOOR FAMILY TUMBLE TOWER GARDEN GAME, WOOD (100%)",Peoples Services,Equipment And Materials Purchase,A40000,
http://opendatacommunities.org/id/london-borough-council/sutton,London Borough of Sutton,09/08/2021,10004034,159.90, ZOOM.US 888-799-9666,ZOOM NEEDED FOR BIG TEAM MEETINGS,Peoples Services,Subscriptions,A47010,
http://opendatacommunities.org/id/london-borough-council/sutton,London Borough of Sutton,17/08/2021,10004034,19.61, AMZNMKTPLACE AMAZON.CO,SPLIT - GIANT 4 IN A ROW INDOOR OUTDOOR FAMILY FUN KIDS GARDEN GAME (70.29%),Peoples Services,Miscellaneous Expenses,A49000,
http://opendatacommunities.org/id/london-borough-council/sutton,London Borough of Sutton,17/08/2021,10004034,8.29, AMZNMKTPLACE AMAZON.CO,BALANCING ENTRY AMOUNT (29.71%),Peoples Services,Miscellaneous Expenses,A49000,
http://opendatacommunities.org/id/london-borough-council/sutton,London Borough of Sutton,21/08/2021,10004034,99.75, PARK ROYAL,HOTEL NEEDED FOR CLIENT,Peoples Services,Miscellaneous Expenses,A49000,
http://opendatacommunities.org/id/london-borough-council/sutton,London Borough of Sutton,21/08/2021,10004034,99.75, PARK ROYAL,HOTEL NEEDED FOR CLIENT,Peoples Services,Miscellaneous Expenses,A49000,
http://opendatacommunities.org/id/london-borough-council/sutton,London Borough of Sutton,27/07/2021,10004034,433.95, ARGOS LTD,ARGOS ORDER - X 2 BEDS & X 2 MATTRESSES,Peoples Services,Client Care/Assistance,A61011,
http://opendatacommunities.org/id/london-borough-council/sutton,London Borough of Sutton,25/08/2021,10004034,"2,111.16", TRAVELODGE,HOTEL NEEDED FOR CLIENT,Peoples Services,Accommodation - Bed and Breakfast,A62000,
http://opendatacommunities.org/id/london-borough-council/sutton,London Borough of Sutton,25/08/2021,10004034,89.03, STORAGEMART UK A-FD61D,STORAGE SPACE FOR A CLIENT,Peoples Services,Storage And Archiving Services,A44085,
http://opendatacommunities.org/id/london-borough-council/sutton,London Borough of Sutton,20/08/2021,10004034,109.87, STORAGEMART UK A-91CAA,STORING CLIENTS ITEMS,Peoples Services,Storage And Archiving Services,A44085,
http://opendatacommunities.org/id/london-borough-council/sutton,London Borough of Sutton,06/08/2021,10004034,822.50, ACCESS SUTTON,ACCESS STORAGE,Peoples Services,Client Care/Assistance,A61011,
http://opendatacommunities.org/id/london-borough-council/sutton,London Borough of Sutton,21/08/2021,10004034,209.83, CS MORRISONS GIFT CARD,FOOD VOUCHERS FOR START CLIENTS,Peoples Services,Miscellaneous Expenses,A49000,
http://opendatacommunities.org/id/london-borough-council/sutton,London Borough of Sutton,05/08/2021,10004034,211.15, ASDA STORES LTD,FOOD VOUCHERS FOR START CLIENTS,Peoples Services,Miscellaneous Expenses,A49000,
http://opendatacommunities.org/id/london-borough-council/sutton,London Borough of Sutton,30/07/2021,10004034,209.83, CS MORRISONS GIFT CARD,FOOD VOUCHERS FOR START CLIENTS,Peoples Services,Miscellaneous Expenses,A49000,
http://opendatacommunities.org/id/london-borough-council/sutton,London Borough of Sutton,29/07/2021,10004034,211.87, HIGHSTREETVOUCHERS,FOOD VOUCHERS FOR START CLIENTS,Peoples Services,Miscellaneous Expenses,A49000,
http://opendatacommunities.org/id/london-borough-council/sutton,London Borough of Sutton,19/08/2021,10004034,214.80, WWW.LOCAL.GOV.UK,NATIONAL CHILDRENS AND ADULTS CONFERENCE FEE FOR CLLR. JAMES 24TH-26TH NOVEMBER 2021,Peoples Services,Conference Expenses,A43075,
http://opendatacommunities.org/id/london-borough-council/sutton,London Borough of Sutton,10/08/2021,10004034,320.00, IZ  RSH ENTERTAINM,ROCKY'S ANIMAL FARM ATTENDED GRANGE CHILDREN'S CENTRE ON 16TH AUGUST PAID BY HEALTHY ACTIVITY FOOD PROGRAMME,Peoples Services,Other Supplies & Services,A44291,
http://opendatacommunities.org/id/london-borough-council/sutton,London Borough of Sutton,25/08/2021,10004034,416.67, FACEBK 6547D476A2,FACEBOOK DEPT ADS AUG2021 500,Health and Wellbeing,Publicity,A44266,
http://opendatacommunities.org/id/london-borough-council/sutton,London Borough of Sutton,08/08/2021,10004034,39.99, ADOBE STOCK,ADOBE 070821 47.99,Health and Wellbeing,Publicity,A44266,
http://opendatacommunities.org/id/london-borough-council/sutton,London Borough of Sutton,31/07/2021,10004034,291.85, FACEBK PMQXF4B6A2,FACEBOOK 310721 350.22,Health and Wellbeing,Publicity,A44266,
http://opendatacommunities.org/id/london-borough-council/sutton,London Borough of Sutton,30/07/2021,10004034,66.47, MAILCHIMP,MAILCHIMP 300721 79.77,Health and Wellbeing,Publicity,A44266,
http://opendatacommunities.org/id/london-borough-council/sutton,London Borough of Sutton,29/07/2021,10004034,19.03, WWW.INSTANTPRINT.C,INSTANTPRINT 300721 22.84,Health and Wellbeing,Publicity,A44266,
http://opendatacommunities.org/id/london-borough-council/sutton,London Borough of Sutton,27/07/2021,10004034,-200.00, WWW.INSTANTPRINT.C,INSTANTPRINT REFUND 200 RE 2122 60000 A4 FLYERS,Health and Wellbeing,Publicity,A44266,
http://opendatacommunities.org/id/london-borough-council/sutton,London Borough of Sutton,25/08/2021,10004034,123.00, TECHBUYER LIMITED,IT SERVER BATTERY,Health and Wellbeing,IT Software Purchase,A45040,
http://opendatacommunities.org/id/london-borough-council/sutton,London Borough of Sutton,19/08/2021,10004034,124.99, CURRYS ONLINE,FRIDGE TO REPLACE ITEM CONTAMINATED IN SEWAGE FLOOD,Health and Wellbeing,Insurance Claims,A44261,
http://opendatacommunities.org/id/london-borough-council/sutton,London Borough of Sutton,11/08/2021,10004034,250.00, ORANGESQUIRRELEVENTS,FUN DAY WITH CICC LBS JOINT COSTS,Peoples Services,LAC - Education,A44280,
http://opendatacommunities.org/id/london-borough-council/sutton,London Borough of Sutton,28/07/2021,10004034,101.88, TWINKL LIMITED,TWINKL MEMBERSHIP RENEW,Peoples Services,LAC - Education,A44280,
